fUSD/lending_fUSD_20250503
["ID","MTS","AMOUNT","RATE_DAILY","PERIOD"]
[359727584,1746282651754,-1774.52,0.00019898,2]
[359727585,1746282651764,-450.0,0.00019898,2]
[359727586,1746282651774,-765.66,0.00019898,2]
[359727587,1746282651783,-450.0,0.00019898,2]
[359727588,1746282651792,-450.0,0.00019898,2]
[359727589,1746282651801,-568.43801907,0.00019898,2]
[359727590,1746282651813,-450.0,0.00019898,2]
[359727591,1746282651822,-509.00556499,0.00019898,2]
[359727592,1746282651832,-16047.61,0.00019898,2]
[359727593,1746282651841,-464.77982689,0.00019898,2]
[359727594,1746282651852,-450.0,0.00019898,2]
[359727595,1746282651863,-629.24,0.00019898,2]
[359727596,1746282651873,-928.97,0.00019898,2]
[359727597,1746282651882,-450.0,0.00019898,2]
[359727598,1746282651891,-450.0,0.00019898,2]
[359727599,1746282651903,-450.0,0.00019898,2]
[359727600,1746282651913,-736.06,0.00019898,2]
[359727601,1746282651923,-450.0,0.00019898,2]
[359727602,1746282651934,-450.0,0.00019898,2]
[359727603,1746282651944,-450.0,0.00019898,2]
[359727604,1746282651955,-450.0,0.00019898,2]
[359727605,1746282651965,-450.0,0.00019898,2]
[359727606,1746282651975,-450.0,0.00019898,2]
[359727607,1746282651987,-1248.63,0.00019898,2]
[359727608,1746282651996,-450.0,0.00019898,2]
[359727609,1746282652007,-450.0,0.00019898,2]
[359727610,1746282652016,-998.9,0.00019898,2]
[359727611,1746282652027,-549.07465899,0.00019898,2]
[359727612,1746282652036,-450.0,0.00019898,2]
[359727613,1746282652046,-450.0,0.00019898,2]
[359727614,1746282652055,-500.0,0.00019898,2]
[359727615,1746282652065,-450.0,0.00019898,2]
[359727616,1746282652075,-450.0,0.00019898,2]
[359727617,1746282652084,-554.23,0.00019898,2]
[359727618,1746282652093,-450.0,0.00019898,2]
[359727619,1746282652103,-450.0,0.00019898,2]
[359727620,1746282652113,-450.0,0.00019898,2]
[359727621,1746282652124,-626.48,0.00019898,2]
[359727622,1746282652135,-450.0,0.00019898,2]
[359727623,1746282652145,-450.0,0.00019898,2]
[359727624,1746282652155,-450.0,0.00019898,2]
[359727625,1746282652164,-848.67,0.00019898,2]
[359727626,1746282652173,-450.0,0.00019898,2]
[359727627,1746282652183,-450.0,0.00019898,2]
[359727628,1746282652193,-450.0,0.00019898,2]
[359727629,1746282652203,-450.0,0.00019898,2]
[359727630,1746282652213,-450.0,0.00019898,2]
[359727631,1746282652223,-450.0,0.00019898,2]
[359727632,1746282652234,-450.0,0.00019898,2]
[359727633,1746282652244,-536.24,0.00019898,2]
[359727634,1746282652253,-450.0,0.00019898,2]
[359727635,1746282652263,-450.0,0.00019898,2]
[359727636,1746282652273,-743.58,0.00019898,2]
[359727637,1746282652283,-2640.69,0.00019898,2]
[359727638,1746282652292,-550.86,0.00019898,2]
[359727639,1746282652302,-450.0,0.00019898,2]
[359727640,1746282652311,-506.13,0.00019898,2]
[359727641,1746282652322,-450.0,0.00019898,2]
[359727642,1746282652332,-1794.79,0.00019898,2]
[359727643,1746282652343,-461.82,0.00019898,2]
[359727644,1746282652353,-450.0,0.00019898,2]
[359727645,1746282652363,-450.0,0.00019898,2]
[359727646,1746282652372,-450.0,0.00019898,2]
[359727647,1746282652382,-450.0,0.00019898,2]
[359727648,1746282652391,-450.0,0.00019898,2]
[359727649,1746282652401,-507.13,0.00019898,2]
[359727650,1746282652410,-450.0,0.00019898,2]
[359727651,1746282652419,-450.0,0.00019898,2]
[359727652,1746282652428,-450.0,0.00019898,2]
[359727653,1746282652437,-582.62,0.00019898,2]
[359727654,1746282652447,-450.0,0.00019898,2]
[359727655,1746282652455,-694.36,0.00019898,2]
[359727656,1746282652465,-839.8,0.00019898,2]
[359727657,1746282652474,-1252.3,0.00019898,2]
[359727658,1746282652483,-450.0,0.00019898,2]
[359727659,1746282652492,-450.0,0.00019898,2]
[359727660,1746282652504,-450.0,0.00019898,2]
[359727661,1746282652514,-450.0,0.00019898,2]
[359727662,1746282652524,-450.0,0.00019898,2]
[359727663,1746282652534,-450.0,0.00019898,2]
[359727664,1746282652543,-450.0,0.00019898,2]
[359727665,1746282652552,-290.49247509,0.00019898,2]
[359727666,1746282652562,-450.0,0.00019898,2]
[359727667,1746282652571,-450.0,0.00019898,2]
[359727668,1746282652580,-345.30219097,0.00019898,2]
[359727669,1746282652589,-373.18418617,0.00019898,2]
[359727670,1746282652598,-373.18418617,0.00019899,2]
[359727671,1746282652607,-373.18418617,0.00019899,2]
[359727672,1746282652617,-1212.56,0.00019899,2]
[359727673,1746282652626,-450.0,0.00019899,2]
[359727674,1746282652635,-450.0,0.00019899,2]
[359727675,1746282652644,-450.0,0.00019899,2]
[359727676,1746282652653,-494.5093263,0.00019899,2]
[359727677,1746282652662,-585.82,0.00019899,2]
[359727678,1746282652671,-609.98,0.00019899,2]
[359727679,1746282652680,-450.0,0.00019899,2]
[359727680,1746282652689,-450.0,0.00019899,2]
[359727681,1746282652698,-450.0,0.00019899,2]
[359727682,1746282652707,-601.1,0.00019899,2]
[359727683,1746282652716,-602.42,0.00019899,2]
[359727684,1746282652725,-450.0,0.00019899,2]
[359727685,1746282652734,-450.0,0.00019899,2]
[359727686,1746282652743,-1959.72,0.00019899,2]
[359727687,1746282652752,-545.17390461,0.00019899,2]
[359727688,1746282652761,-450.0,0.00019899,2]
[359727689,1746282652770,-687.87,0.00019899,2]
[359727690,1746282652780,-450.0,0.00019899,2]
[359727691,1746282652789,-450.0,0.00019899,2]
[359727692,1746282652798,-450.0,0.00019899,2]
[359727693,1746282652807,-739.86,0.00019899,2]
[359727694,1746282652816,-651.89,0.00019899,2]
[359727695,1746282652825,-450.0,0.00019899,2]
[359727696,1746282652834,-450.0,0.00019899,2]
[359727697,1746282652843,-450.0,0.00019899,2]
[359727698,1746282652852,-450.0,0.00019899,2]
[359727699,1746282652861,-734.16,0.00019899,2]
[359727700,1746282652870,-943.7,0.00019899,2]
[359727701,1746282652879,-450.0,0.00019899,2]
[359727702,1746282652888,-450.0,0.00019899,2]
[359727703,1746282652898,-1418.31,0.00019899,2]
[359727704,1746282652909,-887.97,0.00019899,2]
[359727705,1746282652919,-546.76,0.00019899,2]
[359727706,1746282652930,-877.65,0.00019899,2]
[359727707,1746282652941,-571.25,0.00019899,2]
[359727708,1746282652950,-450.0,0.00019899,2]
[359727709,1746282652959,-1612.67,0.00019899,2]
[359727710,1746282652968,-450.0,0.00019899,2]
[359727711,1746282652977,-684.2,0.00019899,2]
[359727712,1746282652989,-601.03,0.00019899,2]
[359727713,1746282652999,-450.0,0.00019899,2]
[359727714,1746282653008,-378.56827324,0.00019899,2]
[359727715,1746282653019,-450.0,0.00019899,2]
[359727716,1746282653030,-450.0,0.00019899,2]
[359727717,1746282653040,-1194.27,0.00019899,2]
[359727718,1746282653049,-450.0,0.00019899,2]
[359727719,1746282653059,-450.0,0.00019899,2]
[359727720,1746282653070,-450.0,0.00019899,2]
[359727721,1746282653079,-450.0,0.00019899,2]
[359727722,1746282653089,-450.0,0.00019899,2]
[359727723,1746282653099,-450.0,0.00019899,2]
[359727724,1746282653108,-2557.27,0.00019899,2]
[359727725,1746282653118,-450.0,0.00019899,2]
[359727726,1746282653129,-1113.94,0.00019899,2]
[359727727,1746282653138,-520.71,0.00019899,2]
[359727728,1746282653147,-2291.96,0.00019899,2]
[359727729,1746282653157,-450.0,0.00019899,2]
[359727730,1746282653167,-660.99,0.00019899,2]
[359727731,1746282653176,-480.76007786,0.00019899,2]
[359727732,1746282653186,-450.0,0.00019899,2]
[359727733,1746282653195,-450.0,0.00019899,2]
[359727734,1746282653204,-450.0,0.00019899,2]
[359727735,1746282653214,-514.99,0.00019899,2]
[359727736,1746282653223,-982.71,0.00019899,2]
[359727737,1746282653232,-849.0,0.00019899,2]
[359727738,1746282653242,-450.0,0.00019899,2]
[359727739,1746282653251,-450.0,0.00019899,2]
[359727740,1746282653260,-450.03,0.00019899,2]
[359727741,1746282653269,-450.0,0.00019899,2]
[359727742,1746282653278,-777.61,0.00019899,2]
[359727743,1746282653288,-450.0,0.00019899,2]
[359727744,1746282653297,-733.56,0.00019899,2]
[359727745,1746282653306,-616.31,0.00019899,2]
[359727746,1746282653315,-373.18418617,0.00019899,2]
[359727747,1746282653325,-373.18418617,0.000199,2]
[359727748,1746282653334,-373.18418617,0.000199,2]
[359727749,1746282653343,-322.83104562,0.000199,2]
[359727750,1746282653352,-12500.0,0.000199,2]
[359727751,1746282653361,-2301.811,0.000199,2]
[359727752,1746282653371,-210.11,0.000199,2]
[359727753,1746282653380,-1677.0,0.000199,2]
[359727754,1746282653388,-12500.0,0.000199,2]
[359727755,1746282653398,-25311.38448478,0.000199,2]
[359727756,1746282653407,-4750.45013189,0.000199,3]
[359727757,1746282653417,-3089.14654292,0.000199,2]
[359727758,1746282653427,-5685.1335544,0.000199,2]
[359727759,1746282653436,-337.66165088,0.000199,2]
[359727760,1746282653445,-216.95569402,0.000199,2]
[359727761,1746282653454,-1378.0,0.000199,2]
[359727762,1746282653463,-150.0,0.00019914,2]
[359727763,1746282653473,-200.0,0.00019915,2]
[359727764,1746282653483,-150.0,0.00019915,2]
[359727765,1746282653492,-150.0,0.00019915,2]
[359727766,1746282653502,-500.0,0.00019915,2]
[359727767,1746282653512,-200.0,0.00019915,2]
[359727768,1746282653521,-150.0,0.00019915,2]
[359727769,1746282653530,-200.0,0.00019915,2]
[359727770,1746282653540,-200.0,0.00019915,2]
[359727771,1746282653550,-500.0,0.00019915,2]
[359727772,1746282653560,-150.0,0.00019915,2]
[359727773,1746282653569,-500.0,0.00019915,2]
[359727774,1746282653579,-521.84447777,0.00019915,2]
[359727775,1746282653588,-150.0,0.00019915,2]
[359727776,1746282653599,-521.7934378,0.00019926,2]
[359727777,1746282653609,-337.66165088,0.00019934,2]
[359727778,1746282653619,-1041.039,0.0001995,2]
[359727779,1746282653628,-6756.0,0.0001995,2]
[359727780,1746282653638,-1299.0,0.0001995,2]
[359727781,1746282653648,-4008.0,0.0001995,2]
[359727782,1746282653657,-337.66165088,0.00019969,2]
[359727783,1746282653667,-514.0,0.0001997,2]
[359727784,1746282653676,-300.0,0.00019973,2]
[359727785,1746282653687,-128080.80077955,0.0001998,2]
[359727786,1746282653700,-776.9,0.00019985,2]
[359727787,1746282653710,-500.0,0.00019985,2]
[359727788,1746282653720,-500.0,0.00019985,2]
[359727789,1746282653731,-500.0,0.00019985,2]
[359727790,1746282653741,-500.0,0.00019985,2]
[359727791,1746282653752,-40665.28617599,0.00019985,2]
[359727792,1746282653762,-273568.2259758,0.00019986,2]
[359727793,1746282653772,-21687.9185259,0.00019986,2]
[359727794,1746282653782,-21276.6133712,0.00019986,2]
[359727795,1746282653792,-20865.3082165,0.00019986,2]
[359727796,1746282653801,-20454.0030618,0.00019986,2]
[359727797,1746282653811,-9569.4887457,0.00019986,2]
[359727798,1746282653822,-9187.3281377,0.00019986,2]
[359727799,1746282653832,-8805.1675297,0.00019986,2]
[359727800,1746282653842,-8423.0069218,0.00019986,2]
[359727801,1746282653851,-463.24295261,0.00019989,2]
[359727802,1746282653861,-500.0,0.00019989,2]
[359727803,1746282653871,-300.0,0.0001999,2]
[359727804,1746282653881,-327705.51022103,0.0001999,2]
[359727805,1746282653891,-450.0,0.00019998,2]
[359727806,1746282653900,-548.69815494,0.00019998,2]
[359727807,1746282653910,-450.0,0.00019998,2]
[359727808,1746282653919,-450.0,0.00019998,2]
[359727809,1746282653930,-450.0,0.00019998,2]
[359727810,1746282653940,-450.0,0.00019998,2]
[359727811,1746282653950,-450.0,0.00019998,2]
[359727812,1746282653959,-450.0,0.00019998,2]
[359727813,1746282653969,-450.0,0.00019998,2]
[359727814,1746282653979,-450.0,0.00019998,2]
[359727815,1746282653988,-450.0,0.00019998,2]
[359727816,1746282653998,-378.88906121,0.00019998,2]
[359727817,1746282654008,-487.42288855,0.00019998,2]
[359727818,1746282654019,-450.0,0.00019998,2]
[359727819,1746282654029,-450.0,0.00019998,2]
[359727820,1746282654039,-450.0,0.00019998,2]
[359727821,1746282654049,-450.0,0.00019998,2]
[359727822,1746282654059,-450.0,0.00019998,2]
[359727823,1746282654070,-450.0,0.00019998,2]
[359727824,1746282654080,-450.0,0.00019998,2]
[359727825,1746282654089,-450.0,0.00019998,2]
[359727826,1746282654099,-450.0,0.00019998,2]
[359727827,1746282654109,-450.0,0.00019998,2]
[359727828,1746282654119,-450.0,0.00019998,2]
[359727829,1746282654129,-450.0,0.00019998,2]
[359727830,1746282654139,-450.0,0.00019998,2]
[359727831,1746282654149,-450.0,0.00019998,2]
[359727832,1746282654159,-534.59,0.00019998,2]
[359727833,1746282654169,-450.0,0.00019998,2]
[359727834,1746282654179,-450.0,0.00019998,2]
[359727835,1746282654189,-450.0,0.00019998,2]
[359727836,1746282654199,-450.0,0.00019998,2]
[359727837,1746282654209,-300.0,0.00019999,2]
[359727838,1746282654218,-500.0,0.00019999,2]
[359727839,1746282654228,-500.0,0.00019999,2]
[359727840,1746282654238,-500.0,0.00019999,2]
[359727841,1746282654248,-500.0,0.00019999,2]
[359727842,1746282654258,-300.0,0.00019999,2]
[359727843,1746282654267,-366.20032378,0.00019999,2]
[359727844,1746282654277,-300.0,0.00019999,2]
[359727845,1746282654287,-776.9,0.00019999,2]
[359727846,1746282654297,-776.9,0.00019999,2]
[359727847,1746282654307,-776.9,0.00019999,2]
[359727848,1746282654317,-776.9,0.00019999,2]
[359727849,1746282654327,-776.9,0.00019999,2]
[359727850,1746282654337,-776.9,0.00019999,2]
[359727851,1746282654347,-776.9,0.00019999,2]
[359727852,1746282654356,-776.9,0.00019999,2]
[359727853,1746282654366,-776.9,0.00019999,2]
[359727854,1746282654376,-776.9,0.00019999,2]
[359727855,1746282654386,-776.9,0.00019999,2]
[359727856,1746282654396,-776.9,0.00019999,2]
[359727857,1746282654405,-776.9,0.00019999,2]
[359727858,1746282654415,-776.9,0.00019999,2]
[359727859,1746282654425,-776.9,0.00019999,2]
[359727860,1746282654435,-776.9,0.00019999,2]
[359727861,1746282654445,-776.9,0.00019999,2]
[359727862,1746282654455,-776.9,0.00019999,2]
[359727863,1746282654464,-776.9,0.00019999,2]
[359727864,1746282654473,-776.94550993,0.00019999,2]
[359727865,1746282654483,-500.0,0.00019999,2]
[359727866,1746282654495,-628.07395844,0.00019999,2]
[359727867,1746282654505,-351.77,0.00019999,2]
[359727868,1746282654515,-1700.0,0.00019999,2]
[359727869,1746282654524,-353.05,0.00019999,2]
[359727870,1746282654534,-66823.38330018,0.00019999,2]
[359727871,1746282654544,-15659.24018654,0.00019999,2]
[359727872,1746282654554,-482.17675895,0.0002,2]
[359727873,1746282654563,-2336649.68360034,0.0002,2]
[359727874,1746282654573,-840742.36849338,0.0002,2]
[359727875,1746282654602,-2323.33272134,0.0002,2]
[359727876,1746282654615,-1397.23585241,0.0002,2]
[359727877,1746282654633,-4280.11583853,0.0002,2]
[359727878,1746282654645,-30206.52841238,0.0002,2]
[359727879,1746282654828,-40.83909276,0.0002,2]
[359727880,1746282654839,-300.72120533,0.0002,2]
[359727881,1746282655316,-450.0,0.00019622,2]
[359727882,1746282655326,-450.0,0.00019624,2]
[359727883,1746282655336,-65.18,0.00019742,2]
[359727884,1746282656172,-450.0,0.00019622,2]
[359727885,1746282656182,-450.0,0.00019622,2]
[359727886,1746282656192,-424.0259524,0.00019622,2]
[359727887,1746282656201,-229.13136487,0.00019622,2]
[359727888,1746282656211,-450.0,0.00019624,2]
[359727889,1746282656221,-1843.83048273,0.00019742,2]
[359727890,1746282656238,-3459.20488637,0.00019742,2]
[359727891,1746282656248,-450.0,0.00019898,2]
[359727892,1746282656258,-94.46605023,0.000199,2]
[359727893,1746282656543,2537.75,0.0002,6]
[359727895,1746282665840,-270.76741447,0.00019507,2]
[359727897,1746282739516,1000.0,0.00018957,2]
[359727898,1746282788755,533.32,0.00018936,2]
[359727899,1746282791353,244.26,0.00018936,2]
[359727900,1746282807160,3772.61,0.00018929,2]
[359727901,1746282917541,198.0,0.000195,2]
[359727902,1746282918874,198.0,0.000195,2]
[359727903,1746282944754,198.0,0.000328,60]
[359727904,1746282981543,150.0,0.00018854,2]
[359727905,1746283107068,3204.0317352,0.00019465,2]
[359727906,1746283198280,199.62,0.00018714,2]
[359727907,1746283278398,-3204.03173515,0.00019513,2]
[359727908,1746283278422,-200.0,0.00019517,2]
[359727909,1746283278445,-1200.0,0.00019521,2]
[359727910,1746283278467,-395.96826485,0.00019522,2]
[359727911,1746283287205,-1731.00983515,0.00019522,2]
[359727912,1746283287227,-154.6696637,0.00019522,2]
[359727913,1746283287249,-3114.32050115,0.00019523,2]
[359727914,1746283296957,-300.0,0.00019522,2]
[359727915,1746283296980,-209.79210134,0.00019523,2]
[359727916,1746283297012,-500.0,0.00019523,2]
[359727917,1746283297043,-500.0,0.00019523,2]
[359727918,1746283297073,-500.0,0.00019523,2]
[359727919,1746283297103,-500.0,0.00019523,2]
[359727920,1746283297136,-508.173899,0.00019523,2]
[359727921,1746283297166,-500.0,0.00019523,2]
[359727922,1746283297200,-500.0,0.00019523,2]
[359727923,1746283297234,-500.0,0.00019523,2]
[359727924,1746283297259,-482.03399966,0.00019524,2]
[359727925,1746283307516,-5000.0,0.00019524,2]
[359727926,1746283316289,-5000.0,0.00019524,2]
[359727927,1746283320101,3380.7611,0.00019424,2]
[359727928,1746283324367,-300.0,0.00019523,2]
[359727929,1746283324389,-4700.0,0.00019524,2]
[359727930,1746283334178,-5000.0,0.00019524,2]
[359727931,1746283383944,200.0,0.00018733,2]
[359727932,1746283399744,250.0,0.00017,2]
[359727933,1746283400849,300.0,0.00019,2]
[359727934,1746283406816,-235.03628673,0.00019521,2]
[359727935,1746283406839,-395.9682,0.00019521,2]
[359727936,1746283406863,-4098.2480582,0.00019522,2]
[359727937,1746283406885,-270.74745507,0.00019523,2]
[359727938,1746283417257,-29.25254493,0.00019523,2]
[359727939,1746283417290,-500.0,0.00019523,2]
[359727940,1746283417325,-500.0,0.00019523,2]
[359727941,1746283417356,-500.0,0.00019523,2]
[359727942,1746283417387,-250.0,0.00019523,2]
[359727943,1746283417421,-500.0,0.00019523,2]
[359727944,1746283417453,-500.0,0.00019523,2]
[359727945,1746283417485,-500.0,0.00019523,2]
[359727946,1746283417515,-508.173899,0.00019523,2]
[359727947,1746283417540,-1212.57355607,0.00019524,2]
[359727948,1746283426325,593.51,0.00016799,2]
[359727949,1746283426536,593.51,0.00019063,2]
[359727950,1746283427811,-5000.0,0.00019524,2]
[359727951,1746283456230,27863.773,0.00019424,2]
[359727952,1746283457489,-250.0,0.00019523,2]
[359727953,1746283457510,-39531.63684427,0.00019524,2]
[359727954,1746283457532,-95216.78539718,0.00019524,2]
[359727955,1746283457553,-200.0,0.00019543,2]
[359727956,1746283457575,-3204.03173515,0.00019562,2]
[359727957,1746283457596,-4098.24805815,0.00019564,2]
[359727958,1746283457618,-157.122743,0.00019572,2]
[359727959,1746283457639,-198.18161,0.00019572,2]
[359727960,1746283457660,-157.122745,0.00019572,2]
[359727961,1746283457682,-4098.24805815,0.00019606,2]
[359727962,1746283457702,-277.3568252,0.00019607,2]
[359727963,1746283457724,-3204.03173515,0.0001961,2]
[359727964,1746283457746,-207.4,0.0001961,2]
[359727965,1746283457766,-999.99,0.0001961,2]
[359727966,1746283457787,-151.0,0.00019611,2]
[359727967,1746283457807,-668.65185757,0.00019611,2]
[359727968,1746283457828,-29999.99,0.00019611,2]
[359727969,1746283457851,-236.71951455,0.00019621,2]
[359727970,1746283457871,-264.95142185,0.00019621,2]
[359727971,1746283457895,-500.0,0.00019621,2]
[359727972,1746283457917,-187.51902884,0.00019621,2]
[359727973,1746283457941,-500.0,0.00019621,2]
[359727974,1746283457960,-194.10746415,0.00019621,2]
[359727975,1746283457982,-500.0,0.00019621,2]
[359727976,1746283458002,-186.20409185,0.00019621,2]
[359727977,1746283458023,-500.0,0.00019621,2]
[359727978,1746283458045,-500.0,0.00019621,2]
[359727979,1746283458066,-500.0,0.00019621,2]
[359727980,1746283458086,-439.63517335,0.00019621,2]
[359727981,1746283458107,-500.0,0.00019621,2]
[359727982,1746283458127,-500.0,0.00019621,2]
[359727983,1746283458147,-500.0,0.00019621,2]
[359727984,1746283458171,-500.0,0.00019621,2]
[359727985,1746283458191,-150.0,0.00019621,2]
[359727986,1746283458213,-450.0,0.00019621,2]
[359727987,1746283458234,-450.0,0.00019621,2]
[359727988,1746283458257,-510.95,0.00019621,2]
[359727989,1746283458277,-233.01178262,0.00019621,2]
[359727990,1746283458298,-450.0,0.00019621,2]
[359727991,1746283458319,-450.0,0.00019621,2]
[359727992,1746283458340,-450.0,0.00019621,2]
[359727993,1746283458360,-297.23,0.00019621,2]
[359727994,1746283458379,-450.0,0.00019621,2]
[359727995,1746283458399,-450.0,0.00019621,2]
[359727996,1746283458420,-450.0,0.00019621,2]
[359727997,1746283458440,-664.15,0.00019621,2]
[359727998,1746283458461,-613.08,0.00019621,2]
[359727999,1746283458482,-450.0,0.00019621,2]
[359728000,1746283458504,-450.0,0.00019621,2]
[359728001,1746283458524,-3891.71,0.00019621,2]
[359728002,1746283458544,-450.0,0.00019621,2]
[359728003,1746283458566,-1231.6,0.00019621,2]
[359728004,1746283458586,-460.33,0.00019621,2]
[359728005,1746283458606,-450.0,0.00019621,2]
[359728006,1746283458627,-450.0,0.00019621,2]
[359728007,1746283458648,-450.0,0.00019621,2]
[359728008,1746283458669,-450.0,0.00019621,2]
[359728009,1746283458690,-803.69,0.00019621,2]
[359728010,1746283458711,-368.92898897,0.00019621,2]
[359728011,1746283458734,-450.0,0.00019621,2]
[359728012,1746283458756,-450.0,0.00019621,2]
[359728013,1746283458779,-450.0,0.00019621,2]
[359728014,1746283459019,-1422.96,0.00019621,2]
[359728015,1746283459042,-450.0,0.00019621,2]
[359728016,1746283459063,-450.0,0.00019621,2]
[359728017,1746283459085,-450.0,0.00019621,2]
[359728018,1746283459107,-450.0,0.00019621,2]
[359728019,1746283459127,-450.0,0.00019621,2]
[359728020,1746283459149,-450.0,0.00019621,2]
[359728021,1746283459173,-450.0,0.00019621,2]
[359728022,1746283459195,-620.05,0.00019621,2]
[359728023,1746283459216,-450.0,0.00019621,2]
[359728024,1746283459238,-450.0,0.00019621,2]
[359728025,1746283459259,-450.0,0.00019621,2]
[359728026,1746283459280,-450.0,0.00019621,2]
[359728027,1746283459302,-450.0,0.00019621,2]
[359728028,1746283459324,-1762.14,0.00019621,2]
[359728029,1746283459346,-450.0,0.00019621,2]
[359728030,1746283459368,-450.0,0.00019621,2]
[359728031,1746283459392,-450.0,0.00019621,2]
[359728032,1746283459415,-107672.57,0.00019621,2]
[359728033,1746283459436,-450.0,0.00019621,2]
[359728034,1746283459458,-450.0,0.00019621,2]
[359728035,1746283459480,-450.0,0.00019621,2]
[359728036,1746283459504,-450.0,0.00019621,2]
[359728037,1746283459526,-450.0,0.00019621,2]
[359728038,1746283459548,-450.0,0.00019621,2]
[359728039,1746283459570,-450.0,0.00019621,2]
[359728040,1746283459591,-450.0,0.00019621,2]
[359728041,1746283459612,-998.61,0.00019621,2]
[359728042,1746283459634,-450.0,0.00019621,2]
[359728043,1746283459654,-450.0,0.00019621,2]
[359728044,1746283459675,-450.0,0.00019621,2]
[359728045,1746283459695,-646.7,0.00019621,2]
[359728046,1746283459716,-450.0,0.00019621,2]
[359728047,1746283459737,-450.0,0.00019621,2]
[359728048,1746283459758,-450.0,0.00019621,2]
[359728049,1746283459781,-450.0,0.00019621,2]
[359728050,1746283459804,-750.94,0.00019621,2]
[359728051,1746283459825,-450.0,0.00019621,2]
[359728052,1746283459846,-450.0,0.00019621,2]
[359728053,1746283459867,-450.0,0.00019621,2]
[359728054,1746283459890,-450.0,0.00019621,2]
[359728055,1746283459911,-450.0,0.00019621,2]
[359728056,1746283459935,-450.0,0.00019621,2]
[359728057,1746283459958,-450.0,0.00019621,2]
[359728058,1746283459980,-450.0,0.00019621,2]
[359728059,1746283460002,-450.0,0.00019621,2]
[359728060,1746283460023,-450.0,0.00019621,2]
[359728061,1746283460042,-450.0,0.00019621,2]
[359728062,1746283460065,-4076.65,0.00019621,2]
[359728063,1746283460087,-644.38,0.00019621,2]
[359728064,1746283460107,-450.0,0.00019621,2]
[359728065,1746283460131,-450.0,0.00019621,2]
[359728066,1746283460152,-760.37,0.00019621,2]
[359728067,1746283460175,-550.30813027,0.00019621,2]
[359728068,1746283460196,-450.0,0.00019621,2]
[359728069,1746283460218,-469.62,0.00019621,2]
[359728070,1746283460239,-450.0,0.00019621,2]
[359728071,1746283460262,-450.0,0.00019621,2]
[359728072,1746283460282,-450.0,0.00019621,2]
[359728073,1746283460302,-450.0,0.00019621,2]
[359728074,1746283460324,-646.7,0.00019621,2]
[359728075,1746283460345,-567.37,0.00019621,2]
[359728076,1746283460368,-450.0,0.00019621,2]
[359728077,1746283460388,-245.51823283,0.00019621,2]
[359728078,1746283460414,-5442.34,0.00019621,2]
[359728079,1746283460435,-450.0,0.00019621,2]
[359728080,1746283460455,-450.0,0.00019621,2]
[359728081,1746283460475,-450.0,0.00019621,2]
[359728082,1746283460495,-4080.75,0.00019621,2]
[359728083,1746283460521,-450.0,0.00019621,2]
[359728084,1746283460541,-450.0,0.00019621,2]
[359728085,1746283460562,-450.0,0.00019621,2]